Cogmind - Beta 17 @@@ ROGUE MODE // 2026.07.28 @ 22:14:33 Player: OBLIQUE Result: Destroyed by TY-WNC(j) with Overtuned Pulse Rifle Performance ------------- Evolutions (0) 0 Regions Visited (4) 800 Robots Destroyed (27) 135 Value Destroyed (505) 505 Prototype IDs (11) 220 Alien Tech Used (0) 0 Bonus (932) 932 TOTAL SCORE: 2592 Bonus ------- Follower Combat Kills 132 Registered with UFD 300 Met Optimus in HQ 500 Cogmind --------- Core Integrity 0/250 Matter 300/300 Energy 95/100 System Corruption 2% Temperature Cool (12) Movement Rolling (100) Location -7/Scraptown Parts ------- > --- POWER (1) -------- (None) > --- PROPULSION (2) --- Armored Huge Wheel > --- UTILITY (2) ------ Medium Storage Unit Improved Light Armor Plating > --- WEAPON (2) ------- Great Axe Companion Sword > --- INVENTORY (10) --- Improved Titanium Leg Improved Titanium Leg Experimental Terrain Scan Processor Microactuators Master Drone Bay (1/1) Vortex Trap DRS Beacon (Ready) Peak State ------------ > --- POWER ------------ Light Deuterium Engine > --- PROPULSION ------- Armored Huge Wheel > --- UTILITY ---------- Medium Storage Unit Master Drone Bay > --- WEAPON ----------- Companion Sword > --- INVENTORY -------- Improved Titanium Leg Improved Titanium Leg Microactuators Improved Light Armor Plating Great Axe Vortex Trap DRS Beacon [Rating: 29] Favorites ----------- Power Ion Engine Engine Ion Engine Propulsion Armored Treads Treads Armored Treads Wheel Armored Huge Wheel Utility Medium Storage Unit Device Master Drone Bay Storage Medium Storage Unit Processor Improved Targeting Computer Protection Improved Light Armor Plating Weapon Light EM Pulse Cannon Energy Gun EM Shotgun Energy Cannon Light EM Pulse Cannon Ballistic Gun Light Assault Rifle Slashing Weapon Companion Sword Build | -11 -10 -10 -7 -7 ------- Run | Yrd Mat Sub Rec Scr Slots Evolved . | . . . . . Power . | . . . . . Propulsion . | . . . . . Utility . | . . . . . Weapon . | . . . . . Parts Attached 30 | 6 5 5 7 7 Power 4 | 1 1 1 . 1 Engine 4 | 1 1 1 . 1 Core . | . . . . . Reactor . | . . . . . Propulsion 7 | 2 . . 4 1 Treads 6 | 2 . . 4 . Leg . | . . . . . Wheel 1 | . . . . 1 Hover . | . . . . . Flight . | . . . . . Utility 5 | 1 2 . . 2 Device 1 | . . . . 1 Storage 2 | 1 1 . . . Processor 1 | . 1 . . . Hackware . | . . . . . Protection 1 | . . . . 1 Artifact . | . . . . . Weapon 14 | 2 2 4 3 3 Energy Gun 7 | 1 2 3 1 . Energy Cannon 3 | . . 1 2 . Ballistic Gun 1 | 1 . . . . Ballistic Cannon . | . . . . . Launcher . | . . . . . Special Weapon . | . . . . . Impact Weapon . | . . . . . Slashing Weapon 3 | . . . . 3 Piercing Weapon . | . . . . . Special Melee Weapon . | . . . . . Unidentified Prototypes 2 | . . . . 2 Parts Lost 8 | . . 3 4 1 Power 1 | . . . . 1 Propulsion 2 | . . 2 . . Utility . | . . . . . Weapon 5 | . . 1 4 . Highest Loss Streak 2 | . . 2 2 1 To Critical Strikes . | . . . . . Average Backups 7 | 2 8 9 9 6 Power . | . 1 . . . Propulsion 1 | 1 . . 1 2 Utility 2 | . 1 2 3 2 Weapon 3 | . 5 6 4 1 Tool/Special . | . . . . . Unused Backups 22 | . 3 . 4 15 Power . | . . . . . Propulsion 10 | . 2 . 2 6 Utility 6 | . . . 2 4 Weapon 6 | . 1 . . 5 Tool/Special . | . . . . . Average Slot Usage (%) 88 | . 98 97 92 82 Engine 13 | . 14 14 14 13 Treads 20 | . 28 28 25 14 Wheel 3 | . . . . 6 Storage 14 | . 14 14 14 14 Processor 6 | . 12 14 12 . Protection 2 | . . . . 5 Energy Gun 8 | . 26 25 13 . Energy Cannon 12 | . . . 11 17 Slashing Weapon 4 | . . . . 9 Peak Build Rating 29 | 6 11 11 17 29 Average Rating 15 | 4 10 10 14 18 On Entrance 7 | . 6 11 5 14 Avg Prop Armor Cover (%) . | . . . . . Naked Turns . | . . . . . Heaviest Build 26 | 13 21 22 23 26 Greatest Support 40 | 40 40 40 40 40 Greatest Overweight (x) 4 | . . 4 4 . Average Overweight (x) . | . . . . . Largest Inventory Capacity 10 | 8 10 10 10 10 Average Capacity 9 | 6 9 10 10 10 Most Carried 10 | 4 10 10 10 10 Average Carried 7 | 2 8 9 9 6 Final Capacity 10 | 8 10 10 10 10 Final Carried 10 | 4 10 10 8 7 Class Distribution -------------------- 59% | Commander-Mutant 40% | Mutant Dominant Class ---------------- Mutant | -10/Materials Mutant | -10/Subcaves Mutant | -7/Recycling Commander-Mutant | -7/Scraptown Resources | -11 -10 -10 -7 -7 ----------- Run | Yrd Mat Sub Rec Scr Matter Collected 541 | 265 50 20 116 90 Remotely . | . . . . . Salvage Created 1014 | 82 572 55 207 98 Parts 50 | 2 31 6 10 1 Haulers Intercepted 2 | . 2 . . . Recyclers Shooed 3 | . . . 3 . Parts Field Recycled . | . . . . . Retrieved Matter . | . . . . . Parts Self-Destructed 7 | . . 7 . . Prevented 4 | . . 4 . . Parts Restored . | . . . . . Kills | -11 -10 -10 -7 -7 ------- Run | Yrd Mat Sub Rec Scr Combat Hostiles Destroyed 19 | . 12 4 2 1 Melee 1 | . . . . 1 Guns 14 | . 11 2 1 . Cannons 1 | . . . 1 . AOE 3 | . 1 2 . . Classes Destroyed 8 | 1 5 . 1 1 Worker 2 | . 2 . . . Hauler 2 | . 2 . . . Recycler 2 | 1 . . 1 . Watcher 2 | . 2 . . . Swarmer 10 | . 6 4 . . Grunt 6 | . 6 . . . Sentry 2 | . . . 2 . Bolteater 1 | . . . . 1 Best Kill Streak 12 | 1 12 4 2 1 Combat Bots Only 7 | . 7 4 1 1 Max Kills in Single Turn 2 | 1 2 2 1 1 Gunslinging 1 | . 1 . . . Exploded 1 | . 1 1 . . Melee 1 | . . . . 1 Uniques/NPCs Destroyed . | . . . . . Combat | -11 -10 -10 -7 -7 -------- Run | Yrd Mat Sub Rec Scr Hostile Shots Fired 217 | . 35 83 63 36 Missed 77 | . 15 27 24 11 Hits 140 | . 20 56 39 25 Projectile 140 | . 20 56 39 25 Critical Strikes 3 | . . . . 3 Damage Taken 1370 | . 227 454 299 390 Core 252 | . 22 92 42 96 Absorbed by Shields 24 | . . . . 24 Core Remaining (%) 100 | 100 . . . . Volleys Fired 42 | 5 22 7 8 . Largest 2 | 2 2 2 2 . Hottest 112 | 70 90 90 112 . Shots Fired 82 | 10 44 14 14 . Gun 77 | 10 44 14 9 . Cannon 5 | . . . 5 . Launcher . | . . . . . Special . | . . . . . Kinetic 5 | 5 . . . . Thermal 5 | 5 . . . . Explosive . | . . . . . Electromagnetic 72 | . 44 14 14 . Robot Hit Streak 13 | 7 13 5 7 . Robot Miss Streak 4 | 1 4 3 1 . Penetration Max . | . . . . . Secondary Targets 6 | . 5 1 . . Max Gunslinging Chain 1 | . 1 1 . . Shots Hit Robots 70 | 8 37 10 11 4 Core Hits 50 | 2 31 5 11 1 Critical Kills . | . . . . . Critical Parts Destroyed . | . . . . . Critical Strikes 1 | 1 . . . . Burn 1 | 1 . . . . Melee Attacks 5 | . . . . 5 Impact . | . . . . . Slashing 5 | . . . . 5 Piercing . | . . . . . Sneak Attacks . | . . . . . Combat Hostiles . | . . . . . Follow-up Attacks . | . . . . . Damage Inflicted 1518 | 84 747 241 271 175 Guns 807 | 84 516 111 96 . Cannons 86 | . . . 86 . Explosions 425 | . 228 130 67 . Melee 175 | . . . . 175 Ramming 25 | . 3 . 22 . Kinetic 22 | 22 . . . . Thermal 487 | 62 228 130 67 . Explosive . | . . . . . Electromagnetic 809 | . 516 111 182 . Impact . | . . . . . Slashing 175 | . . . . 175 Piercing . | . . . . . Highest Corruption 2 | . . . . 2 Average Corruption 1 | . . . . 1 Corruption Purged . | . . . . . Corruption Blocked . | . . . . . Overload Shots . | . . . . . Overflow Damage 67 | . . . 10 57 Projectiles . | . . . . . Explosions 10 | . . . 10 . Melee 57 | . . . . 57 Knockbacks . | . . . . . Impact . | . . . . . Kinetic . | . . . . . Secondary . | . . . . . Self-Inflicted Damage 95 | . 33 58 4 . Shots 5 | . 2 2 1 . Rammed 8 | . 1 . 7 . Targets Rammed 8 | . 1 . 7 . Kicked . | . . . . . Crushed . | . . . . . Highest Temperature 175 | 90 165 2 175 57 Average Temperature 66 | 53 73 2 67 24 Received Heat Transfer 648 | . 51 264 96 237 Siege Activations . | . . . . . Martial Activations . | . . . . . Shielding Activations . | . . . . . Robots Disrupted . | . . . . . Combat Hostiles . | . . . . . Robots Corrupted . | . . . . . Combat Hostiles . | . . . . . Parts Fried 2 | . 2 . . . Impact Corruptions . | . . . . . Robots Melted . | . . . . . Combat Hostiles . | . . . . . Parts Melted . | . . . . . Heat Transferred 809 | 259 300 200 50 . Parts Sabotaged . | . . . . . Parts Stolen . | . . . . . Parts Stripped . | . . . . . Power Chain Reactions 7 | . 3 2 2 . Alert | -11 -10 -10 -7 -7 ------- Run | Yrd Mat Sub Rec Scr Maximum Alert Level 1 | . 1 . . . Low Security (%) 95 | 100 83 . 100 . Level 1 4 | . 16 . . . Level 2 . | . . . . . Level 3 . | . . . . . Level 4 . | . . . . . Level 5 . | . . . . . High Security . | . . . . . Max Security . | . . . . . Peak Influence 248 | 5 248 . 103 . Initial 103 | . 3 . 103 . Average 45 | . 128 . 9 . Influence Increases 704 | 5 380 245 74 . Destroy 0b10 Robot/C 360 | . 240 80 40 . Destroy 0b10 Robot/NC 40 | 5 30 . 5 . Destroy Leader 48 | . 48 . . . Successful Hack 46 | . 23 . 23 . Disable Machine 30 | . 30 . . . Destroy Structure 15 | . 9 . 6 . Lose Combat Pursuer 165 | . . 165 . . Influence Decreases 704 | . 287 128 289 . Entered New Map 162 | . 2 48 112 . Time Decay 512 | . 285 50 177 . Lost Part 30 | . . 30 . . Squads Dispatched 3 | . 3 . . . Investigation . | . . . . . Extermination . | . . . . . Reinforcement 3 | . 3 . . . Assault . | . . . . . Garrison . | . . . . . Intercept . | . . . . . Searches Triggered . | . . . . . Construction Impeded . | . . . . . Haulers Reinforced . | . . . . . Active Scanning Responses . | . . . . . Cargo Convoy Interrupts . | . . . . . Stealth | -11 -10 -10 -7 -7 --------- Run | Yrd Mat Sub Rec Scr Distress Signals 1 | . 1 . . . Communications Jammed . | . . . . . Distress Signals . | . . . . . Times Spotted 49 | . 17 14 2 16 Peak Tracking Total 8 | . 4 6 1 8 Tactical Retreats 3 | . . 3 . . Traps | -11 -10 -10 -7 -7 ------- Run | Yrd Mat Sub Rec Scr Traps Triggered . | . . . . . Indirectly . | . . . . . Trap Hack Attempts . | . . . . . Triggered . | . . . . . Disarmed . | . . . . . Reprogrammed . | . . . . . Reused . | . . . . . Traps Extracted . | . . . . . Installed . | . . . . . Triggered . | . . . . . Most Traps Carried 1 | . . . . 1 Machines | -11 -10 -10 -7 -7 ---------- Run | Yrd Mat Sub Rec Scr Machines Disabled 4 | . 3 . . 1 Max in Single Turn 2 | . 2 . . 1 Machines Repaired . | . . . . . Machines Dismantled . | . . . . . Machines Sabotaged . | . . . . . Overloaded Fab Kills . | . . . . . Hacking | -11 -10 -10 -7 -7 --------- Run | Yrd Mat Sub Rec Scr Machines Accessed 10 | . 4 . 4 2 Terminals 8 | . 4 . 4 . Fabricators . | . . . . . Repair Stations . | . . . . . Recycling Units . | . . . . . Scanalyzers . | . . . . . Garrison Access . | . . . . . Total Hacks 30 | . 16 . 9 5 Successful 18 | . 9 . 4 5 Failed 12 | . 7 . 5 . Catastrophic 1 | . 1 . . . Database Lockouts . | . . . . . Manual 21 | . 13 . 8 . Terminals 25 | . 16 . 9 . Fabricators . | . . . . . Repair Stations . | . . . . . Recycling Units . | . . . . . Scanalyzers . | . . . . . Garrison Access . | . . . . . Terminal Hacks 10 | . 3 . 2 5 Record 4 | . . . . 4 Prototype ID Bank 1 | . 1 . . . Open Door 1 | . . . . 1 Terminal Index 2 | . 1 . 1 . Zone Layout 2 | . 1 . 1 . Fabricator Hacks . | . . . . . Repair Station Hacks . | . . . . . Recycling Unit Hacks . | . . . . . Scanalyzer . | . . . . . Garrison Access Hacks . | . . . . . Unauthorized Hacks 8 | . 6 . 2 . Terminals 8 | . 6 . 2 . Assimilate 1 | . 1 . . . Botnet 5 | . 3 . 2 . Disrupt 1 | . 1 . . . Operators 1 | . 1 . . . Fabricators . | . . . . . Repair Stations . | . . . . . Recycling Units . | . . . . . Scanalyzers . | . . . . . Garrison Access . | . . . . . Data Cores Recovered . | . . . . . Used . | . . . . . Hacking Detections 8 | . 4 . 4 . Full Trace Events . | . . . . . Feedback Events . | . . . . . Feedback Blocked . | . . . . . Robot Schematics Acquired . | . . . . . Robots Built . | . . . . . Authchips . | . . . . . Time . | . . . . . Total Robot Build Rating . | . . . . . Part Schematics Acquired . | . . . . . Parts Built . | . . . . . Authchips . | . . . . . Time . | . . . . . Total Part Build Rating . | . . . . . Part Studies Acquired . | . . . . . Parts Repaired . | . . . . . Time . | . . . . . Parts Recycled . | . . . . . Recycled Matter . | . . . . . Retrieved Matter . | . . . . . Retrieved Components . | . . . . . Parts Scanalyzed . | . . . . . Part Schematics Acquired . | . . . . . Parts Damaged . | . . . . . Bothacking | -11 -10 -10 -7 -7 ------------ Run | Yrd Mat Sub Rec Scr Used RIF Installer . | . . . . . Robots Hacked . | . . . . . Non-combat . | . . . . . Combat . | . . . . . Robot Hacks Applied . | . . . . . Relay Couplers Released . | . . . . . Fabnet Peak Effective % . | . . . . . Robots Rewired 7 | . . . 7 . Allies Hacked . | . . . . . Hacks Repelled . | . . . . . Allies | -11 -10 -10 -7 -7 -------- Run | Yrd Mat Sub Rec Scr Total Allies 7 | . . . 7 . Largest Group 7 | . . . 7 7 Highest-Rated Group 136 | . . . 136 136 Highest-Rated Ally 40 | . . . 40 40 Total Orders . | . . . . . Ally Attacks 22 | . . . . 22 Total Damage 328 | . . . . 328 Kills 4 | . . . . 4 Allies Corrupted . | . . . . . Allies Melted 1 | . . . . 1 Intel | -11 -10 -10 -7 -7 ------- Run | Yrd Mat Sub Rec Scr Active Infowar (turns) . | . . . . . Robot Analysis Total . | . . . . . Derelict Logs Recovered . | . . . . . Drone Launches . | . . . . . Drone Recoveries . | . . . . . Exploration | -11 -10 -10 -7 -7 ------------- Run | Yrd Mat Sub Rec Scr Turns Passed 5172 | 112 762 104 1619 2575 Spaces Moved 2860 | 53 360 41 824 1582 Core 61 | 1 . 2 58 . Treads 2013 | 52 360 39 766 796 Legs . | . . . . . Wheels 786 | . . . . 786 Hover . | . . . . . Flight . | . . . . . Fastest Speed 50 | 50 160 160 170 100 Average Speed 150 | 157 160 164 175 135 Slowest Speed 250 | 160 160 250 250 170 Overloaded Moves . | . . . . . Propulsion Burnouts . | . . . . . Robots Hopped . | . . . . . Potential Cave-ins . | . . . . . Cave-ins Triggered . | . . . . . Exploration Rate (%) 47 | 3 55 3 88 88 Regions Visited 4 Branch Regions 3 Pre-discovered Areas 1 | . . . . 1 Known Exits Taken . | . . . . . Unknown Exits Taken 4 | 1 1 1 1 . Scrap Searched 10 | . . . . 10 Spaces Dug . | . . . . . Terrain Destroyed 23 | . 11 8 4 . Melee . | . . . . . Projectile . | . . . . . AOE 23 | . 11 8 4 . Terrain Rammed . | . . . . . Walls Destroyed . | . . . . . Machines Disabled . | . . . . . Actions | -11 -10 -10 -7 -7 --------- Run | Yrd Mat Sub Rec Scr Total 3641 | 69 505 65 981 2021 Wait 523 | 2 100 8 27 386 Move 2856 | 52 359 40 823 1582 Hop . | . . . . . Pick Up 33 | 4 10 . 7 12 Fast Attach 15 | 6 2 . 2 5 Attach 12 | . 1 2 6 3 Detach 13 | . 1 3 1 8 Swap 10 | . 2 4 3 1 Drop 33 | . 7 1 6 19 Fire 42 | 5 22 7 8 . Melee 5 | . . . . 5 Ram . | . . . . . Kick . | . . . . . Crush 8 | . 1 . 7 . Escape Stasis . | . . . . . Rewire 91 | . . . 91 . Trap . | . . . . . Miscellaneous . | . . . . . Route ------- -11/Scrapyard -10/Materials (discovered 4 exits: [*Mat] / [*Min x2] / [*Sub]) -10/Subcaves -7/Recycling (discovered 2 exits: *Fac / *Scr) -7/Scraptown (discovered 2 exits: *Fac x2) History --------- Turn | Location | Event 60 | -11/Scrapyard | Discovered new exit (range 14) 113 | -11/Scrapyard | Entered Materials 316 | -10/Materials | Build established: Mutant 335 | -10/Materials | Discovered new exit (range 15) 342 | -10/Materials | Destroyed 7 combat bots 517 | -10/Materials | Discovered new exit (range 16) 562 | -10/Materials | Discovered new exit (range 8) 861 | -10/Materials | Discovered new exit (range 8) 875 | -10/Materials | Entered Subcaves 904 | -10/Subcaves | Discovered new exit (range 12) 979 | -10/Subcaves | Entered Recycling 1261 | -7/Recycling | Core integrity fell below 50% 1453 | -7/Recycling | Discovered new exit (range 15) 2335 | -7/Recycling | Build established: Commander-Mutant 2383 | -7/Recycling | Scanned before Scraplab entrance 2578 | -7/Recycling | Entered Scraplab 2592 | -7/Recycling | Discovered new exit (range 4) 2598 | -7/Recycling | Entered Scraptown 2598 | -7/Scraptown | Accompanied by 7 allies 2843 | -7/Scraptown | Discovered new exit (range 11) 2969 | -7/Scraptown | Visited Bundlers 3039 | -7/Scraptown | Visited Red Mages 3261 | -7/Scraptown | Heard Great Nut preacher, LISTEN AND RECITE! 3289 | -7/Scraptown | Visited Comm Corps 3372 | -7/Scraptown | Visited Spacefarers 3443 | -7/Scraptown | Visited SPCMW 3544 | -7/Scraptown | Visited Cave Peace 3610 | -7/Scraptown | Visited UFD Registry 3610 | -7/Scraptown | Registered with UFD as "Fissionthruster" 3663 | -7/Scraptown | Visited Derelict Rescue Squad 3693 | -7/Scraptown | Visited Sword Containment 3720 | -7/Scraptown | Visited Science Guys 3887 | -7/Scraptown | Visited Infowarlord's Domain 3913 | -7/Scraptown | Visited DA-N13 Charitable Foundation 3928 | -7/Scraptown | Found DCF Scrap (25 items) 3970 | -7/Scraptown | Visited Scrapoid Research Area 3989 | -7/Scraptown | Visited Chapter 10 4009 | -7/Scraptown | Visited Research Penetration Think Tank 4033 | -7/Scraptown | Visited Curators Association 4071 | -7/Scraptown | Visited Abandonware Association 4087 | -7/Scraptown | Learned abandonware demo "MELTYB.EXE" 4234 | -7/Scraptown | Found Prototype Slashing Weapon 4234 | -7/Scraptown | Identified Companion Sword 4568 | -7/Scraptown | Found DRS Beacon 4689 | -7/Scraptown | Met Optimus 4689 | -7/Scraptown | Accepted into 0bPrime 5089 | -7/Scraptown | Civil war broke out across Scraptown 5097 | -7/Scraptown | Found Prototype Device 5097 | -7/Scraptown | Identified Master Drone Bay 5140 | -7/Scraptown | Found Exp. Terrain Scan Processor 5159 | -7/Scraptown | Core integrity fell below 20% 5163 | -7/Scraptown | Identified exit to Factory 5173 | -7/Scraptown | Destroyed by TY-WNC(j) with Overtuned Pulse Rifle Last Messages --------------- 05150_ Critical hit (Burn: +50). 05153_ Slug penetrates KM-04F(j). 05153_ KM-04F(j) destroyed. 05153_ Slug penetrates WU-IVD(p). 05157_ Critical hit (Burn: +50). 05157_ Destroyed Imp. Hover Unit. 05157_ Destroyed EM Pulse Gun. 05158_ Slug penetrates WU-IVD(p). 05158_ Slug penetrates Wall. 05158_ Slug penetrates WU-IVD(p). 05158_ Slug penetrates Wall. 05158_ Critical hit (Burn: +50). 05160_ Lgt. Deuterium Engine destroyed. 05160_ Slug penetrates WU-IVD(p). 05160_ WU-IVD(p) destroyed. Optimus: You really should get out of here Fissionthruster. Scraptown is unimportant, the mission is important. Take the northeast exit, it's probably the safer route. Loading 1 Scraptown exit... Map ----- +----------------------------------------------------+ | ########### ##### ## ###############????????????? | | """"""""""" """"" "" "## """ "#????????????? | | "## """"" ""#????????????? | | "## """ "#????????????? | | "## ""#????????????? | | "## "#????????????? | | #????????????? | | """"""""""""""""" "## """ #????????????? | | """"""""""""""""" = "## " """"" ?????????????? | | ###############"" "## """ """ ??????????????? | | ##????????#" "###########???????????????? | | X"#????????#"" "##= [ *!#?????????????????? | | " ##?????##?#""% "##*![%]*#?????????????????? | | "" X"#??????"##""! "##! [![*#?????????????????? | | " #########=#""=![ "##=!![###?????????????????? | | !!!%!%== * ###?????????????????? | | %=!%!=[ #" |[ #?????????????????? | | " ######### #"[=/]*[""# #?????????????????? | | "" ""#??????###""!=/=[="# ! #?????????????????? | | " ##????????#""!!!*%=#########?????????????????? | | X"?????????#""%*%!! *# #?????????????????????? | | ##????????#""=%[%=!=;;;#######???????????????? | | ###############"%=%!!*!"; #???????????????? | | """"""""""""""""%%=%%==## #???????????????? | | """"""""""""""""=!*[==%gj! #???????????????? | | !=]]%==!%##@ #???????????????? | | = %**=[!%!## #???????????????? | | ! *=["###########???????????????? | | *[ = %!%##????????????????????????? | | !%= %[ =====#????????????????????????? | | " """""""" "" """=/%##????????????????????????? | | # ########### #"#### !!#?????????????????????????? | | #??# "# !#?????????????????????????? | | #??#" # #?????????????????????????? | | #??# " "" ""# #?????????????????????????? | | X###??# " "" ""# #?????????????????????????? | | #####?# ""# #?????????????????????????? | | #?#"" """"# ############??????????????? | | #?#"""" """# #??????????????? | | #?#"" "# ##??????????????? | | #?#"""" """# != #??????????????? | | #?#""" X """""#*%[ #??????????????? | | #?#"""""""""""# ! #??????????????? | | ######?############# ############??????????????? | | #################### #####?????????????????????? | | #"""##"""##"""##"|"# """"#?????????????????????? | | #" "##"""##""|##" # "" "#?????????????????????? | | "#?????????????????????? | | " "#?????????????????????? | | """"#?????????????????????? | +----------------------------------------------------+ Best States ------------- Heat Dissipation 25 Energy Generation 14 Energy Capacity 250 Matter Stores 300 Matter Capacity 300 Sight Range 16 Terrain Scan Density 10 Armor Coverage 150 Evasion (%) 40 Targeting Accuracy 6 Recoil Reduction 2 Item Schematics ----------------- None Robot Schematics ------------------ None Fabricated ------------ Nothing Repaired ---------- Nothing Studied --------- None Alien Tech Used ----------------- None Achievements -------------- None Challenges ------------ None Game ------ Seed ScatterGravjetWheel Manual? 0 Play Time 00:40:04 Cumulative 195.0 hours Start 2026.07.28 @ 20:23:48 End 2026.07.28 @ 22:14:33 Sessions 1 Manual Loads 0 Difficulty Rogue Special Mode None Game No. 113 Rogue 113 Adventurer 0 Explorer 0 Win Type - Total 4 Types 4/0/0/0/0/0/0/0/0/0 Lore% 73 Gallery% 63 Achievement% 55 Wizard Run 0 Options --------- Layout 1 ASCII 0 Keyboard 0 Movement Numpad Keybinds 0 Fullscreen 1 Font 24/Smallcaps Map View 50x35 Zoom Use 0% Tactical HUD 1 Map Filters NONE Filters NONE Steam 1 RUN: 7c2f3b78-f1b8-42b6-af1b-38fd4cda8406